[Event "CZE-ch Women 2019"]
[Site "Prague"]
[Date "2019.06.21"]
[Round "7.1"]
[White "Sikorova, Olga"]
[Black "Novosadova, Kristyna"]
[Result "1-0"]
[ECO "A04"]
[WhiteElo "2248"]
[BlackElo "2209"]
[Annotator "NA"]
[PlyCount "161"]
[EventDate "2019.06.15"]
[EventType "tourn"]
[EventCountry "CZE"]
[SourceTitle "playchess.com"]
[Source "ChessBase"]
[SourceQuality "1"]
[TimeControl "40/5400+30:1800+30"]

1. Nf3 {[%emt 0:00:00]} g6 {[%emt 0:00:05]} 2. g3 {[%emt 0:00:24]} Bg7 {[%emt 0:00:09]} 3. Bg2 {[%emt 0:00:48]} e5 {[%emt 0:01:24]} 4. d3 {[%emt 0:00:44]} d6 {[%emt 0:00:33]} 5. O-O {[%emt 0:02:21]} Nc6 {[%emt 0:01:11]} 6. c3 {[%emt 0:04:40]} f5 {[%emt 0:02:38]} 7. b4 {[%emt 0:05:48]} Nf6 {[%emt 0:00:53]} 8. b5 {[%emt 0:11:07]} Ne7 {[%emt 0:02:18]} 9. Qb3 {[%emt 0:02:03]} h6 {[%emt 0:01:04]} 10. a4 {[%emt 0:07:40]} Rb8 {[%emt 0:02:30]} 11. a5 {[%emt 0:07:56]} Nd7 $14 {[%emt 0:01:30]} 12. Ba3 {[%emt 0:08:17]} Nf8 {[%emt 0:07:34]} 13. b6 {[%emt 0:07:46]} axb6 {[%emt 0:01:44]} 14. axb6 {[%emt 0:00:11]} c5 {[%emt 0:00:52]} 15. Nbd2 {[%emt 0:00:40]} Be6 {[%emt 0:00:31]} 16. Nc4 {[%emt 0:00:44]} g5 {[%emt 0:08:53]} 17. Qb5+ {[%emt 0:01:45]} Kf7 {[%emt 0:00:17]} 18. Nfd2 {[%emt 0:04:25]} Kg6 {[%emt 0:03:26]} 19. Bb2 {[%emt 0:05:43]} d5 {[%emt 0:07:23]} 20. Na5 {[%emt 0:02:14]} Nd7 {[%emt 0:03:49]} 21. Ndb3 {[%emt 0:04:04]} h5 {[%emt 0:16:28]} 22. Nxc5 {[%emt 0:00:55]} Nxc5 {[%emt 0:00:28]} 23. Qxc5 {[%emt 0:00:01]} h4 {[%emt 0:00:57]} 24. Qc7 {[%emt 0:13:05]} hxg3 {[%emt 0:01:53]} 25. hxg3 {[%emt 0:00:37]} f4 {[%emt 0:07:44]} 26. Qxd8 {[%emt 0:00:46]} Rhxd8 {[%emt 0:00:27]} 27. c4 {[%emt 0:00:46]} dxc4 {[%emt 0:07:44]} 28. Nxc4 {[%emt 0:00:03]} Bxc4 {[%emt 0:04:59]} 29. dxc4 {[%emt 0:00:01]} Rd2 {[%emt 0:00:22]} 30. Bc3 {[%emt 0:01:51]} Rxe2 {[%emt 0:02:12]} 31. Bf3 {[%emt 0:01:00]} e4 {[%emt 0:00:01]} 32. Bxe2 {[%emt 0:00:13]} Bxc3 {[%emt 0:00:05]} 33. Ra3 {[%emt 0:02:48]} Bd4 {[%emt 0:00:09]} 34. Bd1 {[%emt 0:03:30]} Nf5 {[%emt 0:04:22]} 35. g4 {[%emt 0:01:23]} Nd6 {[%emt 0:00:25]} 36. Bc2 {[%emt 0:00:25]} Bxb6 {[%emt 0:02:07]} 37. Rd1 {[%emt 0:00:08]} Rd8 {[%emt 0:03:26]} 38. Rb3 {[%emt 0:00:22]} Bc5 {[%emt 0:00:54]} 39. Rd5 {[%emt 0:01:40]} Rc8 {[%emt 0:00:37]} 40. Rb1 {[%emt 0:00:30]} Kf6 {[%emt 0:00:27]} 41. Rbd1 {[%emt 0:01:45]} Nxc4 {[%emt 0:02:33]} 42. Bxe4 {[%emt 0:04:46]} Ne5 {[%emt 0:00:27]} 43. Kg2 {[%emt 0:14:15]} b6 {[%emt 0:02:20]} 44. Rh1 {[%emt 0:01:55]} Re8 {[%emt 0:01:58]} 45. Rh6+ {[%emt 0:03:57]} Kg7 {[%emt 0:00:08]} 46. Rh7+ {[%emt 0:00:22]} Kf6 {[%emt 0:00:43]} 47. Bf5 {[%emt 0:00:20]} Nf7 {[%emt 0:01:33]} 48. Rd7 {[%emt 0:02:36]} Re7 {[%emt 0:04:42]} 49. Rxe7 {[%emt 0:00:50]} Bxe7 {[%emt 0:00:05]} 50. Bc2 {[%emt 0:01:53]} Bf8 {[%emt 0:01:27]} 51. Bb3 {[%emt 0:01:03]} Ne5 {[%emt 0:05:57]} 52. Rb7 {[%emt 0:00:09]} Bc5 {[%emt 0:01:03]} 53. f3 {[%emt 0:00:22]} Be3 {[%emt 0:02:28]} 54. Bd5 {[%emt 0:00:24]} Bc5 {[%emt 0:00:33]} 55. Kf1 {[%emt 0:00:50]} Be3 {[%emt 0:03:49]} 56. Ke2 {[%emt 0:00:21]} Bc5 {[%emt 0:00:05]} 57. Kd2 {[%emt 0:00:39]} Bd4 {[%emt 0:00:18]} 58. Kc2 {[%emt 0:00:31]} Bc5 {[%emt 0:01:30]} 59. Kb3 {[%emt 0:00:01]} Be3 {[%emt 0:00:07]} 60. Ka4 {[%emt 0:00:39]} Bc5 {[%emt 0:00:09]} 61. Kb5 {[%emt 0:00:10]} Be3 {[%emt 0:00:23]} 62. Rh7 {[%emt 0:00:44]} Bd4 {[%emt 0:01:53]} 63. Ka6 {[%emt 0:00:36]} Kg6 {[%emt 0:04:04]} 64. Re7 {[%emt 0:00:22]} Kf6 {[%emt 0:00:05]} 65. Re6+ {[%emt 0:00:21]} Kg7 {[%emt 0:00:16]} 66. Kb7 {[%emt 0:00:44]} b5 {[%emt 0:01:26]} 67. Kc7 {[%emt 0:00:02]} b4 {[%emt 0:00:21]} 68. Kd6 {[%emt 0:00:11]} Nf7+ {[%emt 0:00:24]} 69. Ke7 {[%emt 0:00:25]} Bc5+ {[%emt 0:00:54]} 70. Kd7 {[%emt 0:00:13]} Bf8 {[%emt 0:01:36]} 71. Be4 {[%emt 0:01:31]} Kg8 {[%emt 0:03:13]} 72. Rg6+ {[%emt 0:00:56]} Bg7 {[%emt 0:00:01]} 73. Bd5 {[%emt 0:02:03]} Kf8 {[%emt 0:00:02]} 74. Bxf7 {[%emt 0:00:11]} Kxf7 {[%emt 0:00:07]} 75. Rxg5 {[%emt 0:00:04]} b3 {[%emt 0:00:43]} 76. Rf5+ {[%emt 0:00:41]} Kg6 {[%emt 0:00:14]} 77. Rb5 {[%emt 0:00:43]} b2 {[%emt 0:00:14]} 78. Ke6 {[%emt 0:00:01]} Bh8 {[%emt 0:01:52]} 79. Kd5 {[%emt 0:00:05]} Kg5 {[%emt 0:00:42]} 80. Ke4+ {[%emt 0:00:08]} Kh4 {[%emt 0:00:35]} 81. Kxf4 {[%emt 0:00:06]} 1-0

[Event "CZE-ch Women 2019"]
[Site "Prague"]
[Date "2019.06.21"]
[Round "7.3"]
[White "Pychova, Nela"]
[Black "Kulovana, Eva"]
[Result "1/2-1/2"]
[ECO "A06"]
[WhiteElo "2174"]
[BlackElo "2208"]
[Annotator "NA"]
[PlyCount "117"]
[EventDate "2019.06.15"]
[EventType "tourn"]
[EventCountry "CZE"]
[SourceTitle "playchess.com"]
[Source "ChessBase"]
[SourceQuality "1"]
[TimeControl "40/5400+30:1800+30"]

1. Nf3 {[%emt 0:00:00]} d5 {[%emt 0:00:00]} 2. g3 {[%emt 0:00:00]} Nf6 {[%emt 0:00:00]} 3. Bg2 {[%emt 0:00:00]} Bf5 {[%emt 0:00:27]} 4. O-O {[%emt 0:02:28]} e6 {[%emt 0:00:42]} 5. c4 {[%emt 0:04:27]} Nc6 {[%emt 0:06:42]} 6. cxd5 {[%emt 0:11:41]} exd5 {[%emt 0:00:07]} 7. d3 {[%emt 0:00:11]} h6 {[%emt 0:00:56]} 8. a3 {[%emt 0:07:53]} Be7 {[%emt 0:05:26]} 9. b4 {[%emt 0:02:12]} a6 {[%emt 0:05:55]} 10. Bb2 {[%emt 0:02:06]} O-O {[%emt 0:00:13]} 11. Nbd2 $11 {[%emt 0:00:14]} Bh7 {[%emt 0:11:42]} 12. Re1 {[%emt 0:01:32]} a5 {[%emt 0:04:40]} 13. b5 {[%emt 0:02:44]} Na7 {[%emt 0:00:46]} 14. Qb3 {[%emt 0:07:36]} c6 {[%emt 0:05:03]} 15. bxc6 {[%emt 0:03:06]} bxc6 {[%emt 0:00:39]} 16. Rac1 {[%emt 0:04:05]} Rb8 {[%emt 0:07:25]} 17. Qa2 {[%emt 0:01:39]} Nd7 {[%emt 0:03:22]} 18. Bh3 {[%emt 0:07:01]} a4 {[%emt 0:05:13]} 19. Bd4 {[%emt 0:06:44]} Nb5 {[%emt 0:05:11]} 20. Nb1 {[%emt 0:10:46]} c5 {[%emt 0:08:59]} 21. Bxd7 {[%emt 0:07:51]} Nxd4 {[%emt 0:01:30]} 22. Qxd5 {[%emt 0:01:12]} Nxf3+ {[%emt 0:05:50]} 23. exf3 {[%emt 0:00:15]} Rb6 {[%emt 0:03:02]} 24. Bc6 {[%emt 0:03:10]} Bxd3 {[%emt 0:01:23]} 25. Qxd8 {[%emt 0:06:16]} Bxd8 {[%emt 0:00:48]} 26. Bxa4 {[%emt 0:00:33]} Rb2 {[%emt 0:01:02]} 27. Nc3 {[%emt 0:05:15]} c4 {[%emt 0:00:34]} 28. Nd5 {[%emt 0:01:12]} Ba5 {[%emt 0:01:34]} 29. Nb4 {[%emt 0:00:43]} Bxb4 {[%emt 0:09:42]} 30. axb4 {[%emt 0:00:01]} Rxb4 {[%emt 0:00:09]} 31. Bc2 {[%emt 0:00:39]} Rb2 {[%emt 0:01:15]} 32. Bxd3 {[%emt 0:00:43]} cxd3 {[%emt 0:00:05]} 33. Rcd1 {[%emt 0:01:02]} Rd8 {[%emt 0:00:22]} 34. Re3 {[%emt 0:00:32]} d2 {[%emt 0:01:14]} 35. Kf1 {[%emt 0:00:57]} g5 {[%emt 0:01:55]} 36. Ke2 {[%emt 0:00:27]} Kg7 {[%emt 0:01:22]} 37. Rd3 {[%emt 0:00:25]} Re8+ {[%emt 0:00:30]} 38. Kf1 {[%emt 0:00:44]} Re6 {[%emt 0:01:16]} 39. R3xd2 {[%emt 0:00:18]} Rb3 {[%emt 0:00:15]} 40. Kg2 {[%emt 0:00:24]} Rf6 {[%emt 0:00:24]} 41. Rd3 {[%emt 0:30:24]} Rb2 {[%emt 0:30:50]} 42. Rd6 {[%emt 0:00:00]} Rxd6 {[%emt 0:00:00]} 43. Rxd6 {[%emt 0:00:00]} Rb4 {[%emt 0:00:00]} 44. Rd8 {[%emt 0:00:00]} Ra4 {[%emt 0:00:00]} 45. Re8 {[%emt 0:00:00]} f5 {[%emt 0:00:00]} 46. Re6 {[%emt 0:00:00]} Rb4 {[%emt 0:00:00]} 47. h3 {[%emt 0:00:00]} Ra4 {[%emt 0:00:00]} 48. f4 {[%emt 0:00:00]} gxf4 {[%emt 0:00:00]} 49. g4 {[%emt 0:00:00]} fxg4 {[%emt 0:00:00]} 50. hxg4 {[%emt 0:00:00]} Ra5 {[%emt 0:00:00]} 51. Kf3 {[%emt 0:00:00]} h5 {[%emt 0:00:00]} 52. gxh5 {[%emt 0:00:00]} Rxh5 {[%emt 0:00:00]} 53. Kxf4 {[%emt 0:00:00]} Kf7 {[%emt 0:00:00]} 54. Ra6 {[%emt 0:00:00]} Rb5 {[%emt 0:00:00]} 55. Kg4 {[%emt 0:00:00]} Rc5 {[%emt 0:00:00]} 56. f4 {[%emt 0:00:00]} Rb5 {[%emt 0:00:00]} 57. f5 {[%emt 0:00:00]} Rb1 {[%emt 0:00:00]} 58. Kg5 {[%emt 0:00:00]} Rg1+ {[%emt 0:00:00]} 59. Kf4 {[%emt 0:00:00]} 1/2-1/2

[Event "CZE-ch Women 2019"]
[Site "Prague"]
[Date "2019.06.21"]
[Round "7.4"]
[White "Miturova, Magdalena"]
[Black "Laurincova, Kristyna"]
[Result "1-0"]
[ECO "A05"]
[WhiteElo "2220"]
[BlackElo "1984"]
[Annotator "NA"]
[PlyCount "95"]
[EventDate "2019.06.15"]
[EventType "tourn"]
[EventCountry "CZE"]
[SourceTitle "playchess.com"]
[Source "ChessBase"]
[SourceQuality "1"]
[TimeControl "40/5400+30:1800+30"]

1. Nf3 {[%emt 0:00:00]} Nf6 {[%emt 0:00:00]} 2. g3 {[%emt 0:00:00]} g6 {[%emt 0:00:03]} 3. b3 {[%emt 0:00:00]} Bg7 {[%emt 0:00:14]} 4. Bb2 {[%emt 0:00:03]} O-O {[%emt 0:00:46]} 5. Bg2 {[%emt 0:00:07]} c5 {[%emt 0:05:48]} 6. c4 {[%emt 0:01:46]} Nc6 {[%emt 0:00:47]} 7. O-O {[%emt 0:01:52]} d6 {[%emt 0:03:59]} 8. d4 {[%emt 0:01:15]} cxd4 {[%emt 0:04:21]} 9. Nxd4 {[%emt 0:00:14]} Bd7 {[%emt 0:00:15]} 10. e3 {[%emt 0:02:11]} Rb8 $14 {[%emt 0:01:10]} 11. Nc3 {[%emt 0:04:36]} Nxd4 {[%emt 0:07:02]} 12. Qxd4 {[%emt 0:06:04]} Qa5 {[%emt 0:05:27]} (12... Bc6 $11 {keeps the balance.}) 13. Rfd1 {[%emt 0:21:07]} Ng4 {[%emt 0:05:50]} 14. Qd2 {[%emt 0:01:44]} Qh5 {[%emt 0:00:19]} 15. h3 {[%emt 0:12:58]} Ne5 {[%emt 0:04:55]} 16. g4 {[%emt 0:00:09]} Qh4 {[%emt 0:04:33]} 17. f4 {[%emt 0:02:57]} Nc6 {[%emt 0:01:47]} 18. Qf2 {[%emt 0:01:14]} Qxf2+ {[%emt 0:01:56]} 19. Kxf2 {[%emt 0:00:31]} Rfd8 {[%emt 0:01:04]} 20. Rd2 {[%emt 0:02:18]} b5 {[%emt 0:09:01]} 21. Nxb5 {[%emt 0:08:19]} Bxb2 {[%emt 0:00:08]} 22. Rxb2 {[%emt 0:00:02]} Nb4 {[%emt 0:00:19]} 23. Bf1 {[%emt 0:01:23]} Bxb5 {[%emt 0:00:14]} 24. cxb5 {[%emt 0:00:10]} Rdc8 {[%emt 0:00:36]} 25. a3 {[%emt 0:02:17]} Nd5 {[%emt 0:01:03]} 26. Bc4 {[%emt 0:09:51]} Nc3 {[%emt 0:01:23]} 27. a4 {[%emt 0:00:50]} d5 {[%emt 0:26:10]} 28. Bd3 {[%emt 0:00:13]} Ne4+ {[%emt 0:00:36]} 29. Kf3 {[%emt 0:00:22]} Rc3 {[%emt 0:06:06]} 30. Bxe4 {[%emt 0:03:26]} dxe4+ {[%emt 0:00:01]} 31. Kxe4 {[%emt 0:00:08]} Rd8 {[%emt 0:00:03]} 32. Re1 {[%emt 0:03:01]} Rdd3 {[%emt 0:00:47]} 33. b4 {[%emt 0:03:50]} e6 {[%emt 0:00:13]} 34. Ree2 {[%emt 0:02:57]} f5+ {[%emt 0:00:07]} 35. gxf5 {[%emt 0:00:28]} exf5+ {[%emt 0:00:51]} 36. Kf3 {[%emt 0:00:13]} Kf7 {[%emt 0:02:10]} 37. Rbd2 {[%emt 0:00:56]} Ke6 {[%emt 0:00:07]} 38. Rxd3 {[%emt 0:00:31]} Rxd3 {[%emt 0:00:01]} 39. Rc2 {[%emt 0:00:11]} Kd7 {[%emt 0:05:34]} 40. Rc6 {[%emt 0:00:31]} Rb3 {[%emt 0:01:36]} 41. Ra6 {[%emt 0:31:30]} Rxb4 {[%emt 0:30:03]} 42. Rxa7+ {[%emt 0:00:08]} Kc8 {[%emt 0:00:07]} 43. h4 {[%emt 0:05:52]} Kb8 {[%emt 0:00:20]} 44. Rxh7 {[%emt 0:00:56]} Rxa4 {[%emt 0:00:02]} 45. Rg7 {[%emt 0:00:14]} Rb4 {[%emt 0:00:29]} 46. Rxg6 {[%emt 0:00:07]} Rxb5 {[%emt 0:00:07]} 47. h5 {[%emt 0:00:12]} Kc7 {[%emt 0:01:30]} 48. Rf6 {[%emt 0:00:53]} 1-0

[Event "CZE-ch Women 2019"]
[Site "Prague"]
[Date "2019.06.21"]
[Round "7.5"]
[White "Petrova, Kristyna"]
[Black "Kanakova, Natalie"]
[Result "1-0"]
[ECO "D05"]
[WhiteElo "2259"]
[BlackElo "2201"]
[Annotator "NA"]
[PlyCount "133"]
[EventDate "2019.06.15"]
[EventType "tourn"]
[EventCountry "CZE"]
[SourceTitle "playchess.com"]
[Source "ChessBase"]
[SourceQuality "1"]
[TimeControl "40/5400+30:1800+30"]

1. Nf3 {[%emt 0:00:00]} d5 {[%emt 0:00:00]} 2. d4 {[%emt 0:00:00]} Nf6 {[%emt 0:00:52]} 3. e3 {[%emt 0:00:00]} e6 {[%emt 0:01:30]} 4. Bd3 {[%emt 0:00:00]} c5 {[%emt 0:01:03]} 5. b3 {[%emt 0:00:12]} Nc6 {[%emt 0:01:11]} 6. O-O {[%emt 0:00:16]} Bd6 {[%emt 0:01:30]} 7. Bb2 {[%emt 0:00:21]} b6 {[%emt 0:03:16]} 8. Nbd2 {[%emt 0:05:07]} Bb7 {[%emt 0:03:09]} 9. a3 {[%emt 0:01:56]} O-O {[%emt 0:01:16]} 10. Ne5 {[%emt 0:01:47]} Ne7 {[%emt 0:03:12]} 11. Qf3 $11 {[%emt 0:18:51]} Rc8 {[%emt 0:14:23]} 12. Qh3 {[%emt 0:03:45]} h6 {[%emt 0:08:34]} 13. Ng4 {[%emt 0:11:32]} Nxg4 {[%emt 0:21:21]} 14. Qxg4 {[%emt 0:00:02]} f5 {[%emt 0:00:21]} 15. Qe2 {[%emt 0:01:46]} Qc7 {[%emt 0:01:34]} 16. f4 {[%emt 0:06:19]} Kh7 {[%emt 0:00:35]} 17. c4 {[%emt 0:05:24]} cxd4 {[%emt 0:07:35]} 18. Bxd4 {[%emt 0:00:33]} e5 {[%emt 0:00:41]} 19. fxe5 {[%emt 0:16:39]} Bxe5 {[%emt 0:00:05]} 20. Bxe5 {[%emt 0:00:03]} Qxe5 {[%emt 0:00:05]} 21. Nf3 {[%emt 0:00:02]} Qd6 {[%emt 0:05:11]} 22. Nd4 {[%emt 0:02:15]} Qe5 {[%emt 0:07:56]} 23. Nf3 {[%emt 0:03:35]} Qd6 {[%emt 0:00:04]} 24. Nd4 {[%emt 0:00:20]} g6 {[%emt 0:03:09]} 25. Nb5 {[%emt 0:04:50]} Qb8 {[%emt 0:00:07]} 26. Qf2 {[%emt 0:00:40]} a6 {[%emt 0:00:50]} 27. Nd4 {[%emt 0:00:07]} Qe5 {[%emt 0:01:52]} 28. a4 {[%emt 0:07:12]} dxc4 {[%emt 0:04:40]} 29. bxc4 {[%emt 0:00:05]} Ng8 {[%emt 0:01:42]} 30. Rab1 {[%emt 0:01:49]} Be4 {[%emt 0:03:54]} 31. Bxe4 {[%emt 0:02:02]} Qxe4 {[%emt 0:00:01]} 32. Rxb6 {[%emt 0:00:41]} Rxc4 {[%emt 0:00:52]} 33. Rxa6 {[%emt 0:01:56]} Qb7 {[%emt 0:00:46]} 34. Ra5 {[%emt 0:01:04]} Nf6 {[%emt 0:01:31]} 35. Qf4 {[%emt 0:01:14]} Re8 {[%emt 0:01:25]} 36. Qd6 {[%emt 0:02:29]} Ne4 {[%emt 0:00:40]} 37. Qa6 {[%emt 0:01:30]} Qf7 {[%emt 0:00:20]} 38. Rb5 {[%emt 0:01:11]} Re7 {[%emt 0:01:02]} 39. a5 {[%emt 0:01:06]} Nc5 {[%emt 0:00:36]} 40. Qd6 {[%emt 0:00:38]} Ne4 {[%emt 0:00:34]} 41. Qd8 {[%emt 0:17:11]} Rd7 {[%emt 0:01:52]} 42. Qb8 {[%emt 0:00:10]} Nd6 {[%emt 0:05:19]} 43. Re5 {[%emt 0:03:22]} Rc8 {[%emt 0:01:51]} 44. Qb3 {[%emt 0:01:57]} Qxb3 {[%emt 0:08:12]} 45. Nxb3 {[%emt 0:00:02]} Nc4 {[%emt 0:00:31]} 46. Rc1 {[%emt 0:05:47]} Rb8 {[%emt 0:09:23]} 47. Rxc4 {[%emt 0:00:31]} Rxb3 {[%emt 0:00:03]} 48. h4 {[%emt 0:02:23]} h5 {[%emt 0:02:13]} 49. Rd4 {[%emt 0:01:17]} Rc7 {[%emt 0:01:53]} 50. Re6 {[%emt 0:00:41]} Rb1+ {[%emt 0:01:28]} 51. Kh2 {[%emt 0:00:16]} Ra1 {[%emt 0:01:12]} 52. a6 {[%emt 0:00:18]} Ra2 {[%emt 0:00:51]} 53. Rdd6 {[%emt 0:01:44]} Rc4 {[%emt 0:01:28]} 54. Kh3 {[%emt 0:01:08]} Raa4 {[%emt 0:00:40]} 55. Rd7+ {[%emt 0:00:25]} Kh6 {[%emt 0:00:23]} 56. g3 {[%emt 0:00:23]} Rc8 {[%emt 0:00:17]} 57. Ree7 {[%emt 0:00:32]} Rh8 {[%emt 0:00:04]} 58. a7 {[%emt 0:00:04]} Re4 {[%emt 0:01:16]} 59. Rxe4 {[%emt 0:00:55]} fxe4 {[%emt 0:00:03]} 60. g4 {[%emt 0:00:30]} hxg4+ {[%emt 0:00:13]} 61. Kxg4 {[%emt 0:00:04]} Rf8 {[%emt 0:00:46]} 62. Rb7 {[%emt 0:00:27]} Ra8 {[%emt 0:00:17]} 63. Re7 {[%emt 0:00:19]} g5 {[%emt 0:00:53]} 64. hxg5+ {[%emt 0:00:21]} Kg6 {[%emt 0:00:05]} 65. Re6+ {[%emt 0:00:03]} Kf7 {[%emt 0:00:05]} 66. Ra6 {[%emt 0:00:03]} Kg7 {[%emt 0:00:38]} 67. Kf5 {[%emt 0:00:17]} 1-0

[Event "CZE-ch Women 2019"]
[Site "Prague"]
[Date "2019.06.23"]
[Round "9.1"]
[White "Rodshtein, Tereza"]
[Black "Novosadova, Kristyna"]
[Result "1-0"]
[ECO "B59"]
[WhiteElo "2213"]
[BlackElo "2209"]
[Annotator "ChessBase"]
[PlyCount "87"]
[EventDate "2019.06.15"]
[EventType "tourn"]
[EventCountry "CZE"]
[SourceTitle "playchess.com"]
[Source "ChessBase"]
[SourceQuality "1"]
[TimeControl "40/5400+30:1800+30"]

1. e4 {[%emt 0:00:00]} c5 {[%emt 0:00:00]} 2. Nf3 {[%emt 0:00:00]} Nc6 {[%emt 0:00:00]} 3. d4 {[%emt 0:00:00]} cxd4 {[%emt 0:00:06]} 4. Nxd4 {[%emt 0:00:00]} Nf6 {[%emt 0:00:06]} 5. Nc3 {[%emt 0:00:00]} d6 {[%emt 0:00:05]} 6. Be2 {[%emt 0:10:57]} e5 {[%emt 0:03:56]} 7. Nb3 {[%emt 0:01:49]} Be7 {[%emt 0:00:41]} 8. Bg5 {[%emt 0:03:08]} Be6 {[%emt 0:00:56]} 9. O-O {[%emt 0:00:40]} O-O {[%emt 0:02:26]} 10. Qd2 {[%emt 0:02:43]} a5 {[%emt 0:00:15]} 11. a4 {[%emt 0:03:35]} Nb4 {[%emt 0:00:42]} 12. Rfd1 {[%emt 0:02:12]} d5 {[%emt 0:13:39]} 13. exd5 {[%emt 0:14:54]} Nfxd5 {[%emt 0:01:10]} 14. Bxe7 {[%emt 0:00:10]} Qxe7 {[%emt 0:00:20]} 15. Nxd5 {[%emt 0:01:01]} Bxd5 {[%emt 0:01:17]} 16. Rac1 {[%emt 0:03:10]} Bc6 {[%emt 0:13:44]} 17. Bb5 {[%emt 0:10:47]} Bxb5 {[%emt 0:00:27]} 18. axb5 {[%emt 0:00:02]} a4 {[%emt 0:01:01]} 19. Na1 {[%emt 0:00:05]} Rfd8 {[%emt 0:14:40]} 20. Qe2 {[%emt 0:00:09]} Nd5 {[%emt 0:04:56]} 21. Re1 {[%emt 0:04:34]} f6 {[%emt 0:01:46]} 22. g3 {[%emt 0:01:01]} Qc5 {[%emt 0:04:43]} 23. c3 {[%emt 0:08:05]} Nc7 {[%emt 0:01:06]} 24. c4 {[%emt 0:00:22]} Ne6 {[%emt 0:00:06]} 25. Nc2 {[%emt 0:00:56]} Rac8 {[%emt 0:03:41]} 26. Ne3 {[%emt 0:02:15]} Nd4 {[%emt 0:02:28]} 27. Qg4 {[%emt 0:00:56]} g6 {[%emt 0:03:26]} 28. Qe4 {[%emt 0:01:28]} f5 {[%emt 0:05:31]} 29. Qxb7 {[%emt 0:02:51]} Rb8 {[%emt 0:02:44]} 30. Qg2 {[%emt 0:01:35]} f4 {[%emt 0:00:31]} 31. gxf4 {[%emt 0:03:01]} exf4 {[%emt 0:00:09]} 32. Nd5 {[%emt 0:00:31]} f3 {[%emt 0:11:57]} 33. Qg5 {[%emt 0:00:54]} Rxd5 {[%emt 0:03:37]} 34. cxd5 {[%emt 0:00:24]} Ne2+ {[%emt 0:00:37]} 35. Rxe2 {[%emt 0:04:28]} fxe2 {[%emt 0:00:05]} 36. Rxc5 {[%emt 0:02:12]} e1=Q+ {[%emt 0:00:07]} 37. Kg2 {[%emt 0:00:02]} Qe4+ {[%emt 0:00:29]} 38. Kg3 {[%emt 0:00:22]} Rf8 {[%emt 0:02:50]} 39. Qe3 {[%emt 0:00:52]} Qh1 {[%emt 0:00:47]} 40. f4 {[%emt 0:05:27]} h5 {[%emt 0:00:35]} 41. h3 {[%emt 0:14:43]} Qf1 {[%emt 0:13:26]} 42. Rc7 {[%emt 0:06:34]} h4+ {[%emt 0:01:09]} 43. Kh2 {[%emt 0:00:22]} Rxf4 {[%emt 0:01:12]} 44. Qe8+ {[%emt 0:00:14]} 1-0

[Event "CZE-ch Women 2019"]
[Site "Prague"]
[Date "2019.06.23"]
[Round "9.2"]
[White "Pychova, Nela"]
[Black "Sikorova, Olga"]
[Result "1/2-1/2"]
[ECO "A05"]
[WhiteElo "2174"]
[BlackElo "2248"]
[Annotator "ChessBase"]
[PlyCount "88"]
[EventDate "2019.06.15"]
[EventType "tourn"]
[EventCountry "CZE"]
[SourceTitle "playchess.com"]
[Source "ChessBase"]
[SourceQuality "1"]
[TimeControl "40/5400+30:1800+30"]

1. Nf3 {[%emt 0:00:00]} Nf6 {[%emt 0:00:00]} 2. g3 {[%emt 0:00:00]} g6 {[%emt 0:00:00]} 3. Bg2 {[%emt 0:00:00]} Bg7 {[%emt 0:00:00]} 4. O-O {[%emt 0:00:06]} O-O {[%emt 0:00:08]} 5. c4 {[%emt 0:01:59]} d6 {[%emt 0:00:08]} 6. Nc3 {[%emt 0:00:24]} Nc6 {[%emt 0:00:23]} 7. Rb1 {[%emt 0:01:18]} a5 {[%emt 0:00:54]} 8. a3 {[%emt 0:00:17]} e5 {[%emt 0:02:12]} 9. d3 {[%emt 0:01:51]} Re8 {[%emt 0:00:39]} 10. b4 {[%emt 0:06:16]} axb4 {[%emt 0:00:19]} 11. axb4 {[%emt 0:00:08]} e4 {[%emt 0:00:29]} 12. dxe4 {[%emt 0:17:46]} Nxe4 {[%emt 0:00:13]} 13. Nxe4 {[%emt 0:00:40]} Rxe4 {[%emt 0:00:07]} 14. b5 {[%emt 0:01:55]} Na5 {[%emt 0:06:12]} 15. Nd2 {[%emt 0:06:10]} Re8 {[%emt 0:01:54]} 16. Bb2 {[%emt 0:02:39]} Bf5 {[%emt 0:17:38]} 17. e4 {[%emt 0:01:32]} Be6 {[%emt 0:00:08]} 18. Bxg7 {[%emt 0:00:48]} Kxg7 {[%emt 0:00:03]} 19. Qc2 {[%emt 0:00:38]} Qf6 {[%emt 0:02:47]} 20. c5 {[%emt 0:03:33]} Red8 {[%emt 0:29:23]} 21. cxd6 {[%emt 0:08:17]} Rxd6 {[%emt 0:00:41]} 22. Nf3 {[%emt 0:00:42]} Rd7 {[%emt 0:02:57]} 23. Ra1 {[%emt 0:07:18]} b6 {[%emt 0:09:18]} 24. e5 {[%emt 0:06:26]} Qe7 {[%emt 0:02:07]} 25. Nd4 {[%emt 0:14:25]} Bd5 {[%emt 0:08:18]} 26. Bh3 {[%emt 0:03:45]} Rdd8 {[%emt 0:02:15]} 27. e6 {[%emt 0:01:15]} f6 {[%emt 0:01:13]} 28. Rfe1 {[%emt 0:03:29]} Rd6 {[%emt 0:03:29]} 29. Qe2 {[%emt 0:03:23]} Re8 {[%emt 0:04:43]} 30. Qg4 {[%emt 0:02:26]} Kh8 {[%emt 0:00:09]} 31. Qh4 {[%emt 0:03:31]} Ba8 {[%emt 0:01:31]} 32. Ne2 {[%emt 0:02:22]} f5 {[%emt 0:03:22]} 33. Qxe7 {[%emt 0:00:31]} Rxe7 {[%emt 0:00:01]} 34. Nf4 {[%emt 0:00:37]} Kg7 {[%emt 0:00:32]} 35. Rad1 {[%emt 0:00:30]} Nc4 {[%emt 0:01:12]} 36. Bg2 {[%emt 0:00:26]} Bxg2 {[%emt 0:01:19]} 37. Kxg2 {[%emt 0:00:15]} Rxd1 {[%emt 0:00:33]} 38. Rxd1 {[%emt 0:00:02]} Na3 {[%emt 0:01:08]} 39. Rd7 {[%emt 0:00:55]} Kf8 {[%emt 0:00:21]} 40. Nd5 {[%emt 0:00:49]} Rxe6 {[%emt 0:00:39]} 41. Nxc7 {[%emt 0:08:48]} Re7 {[%emt 0:01:45]} 42. Rxe7 {[%emt 0:06:28]} Kxe7 {[%emt 0:00:10]} 43. Nd5+ {[%emt 0:00:11]} Kd6 {[%emt 0:02:05]} 44. Nxb6 {[%emt 0:00:10]} Nxb5 {[%emt 0:00:14]} 1/2-1/2